bitfinex-derivatives/quotes_ETHF0:USTF0_20240910
["timestamp","ask_amount","ask_price","bid_price","bid_amount"]
[1725993449313,0.42172,2371.1,2371.0,9.5761]
[1725993449515,1.05417,2371.4,2371.0,9.5761]
[1725993449816,0.42172,2371.1,2371.0,9.5761]
[1725993450017,0.42172,2371.1,2371.0,9.2]
[1725993450218,4.5888,2371.1,2370.5,0.3843]
[1725993450410,0.3712,2371.1,2370.5,0.7541]
[1725993450605,0.42181,2370.7,2370.6,9.2]
[1725993450811,1.05439,2370.9,2370.5,0.7541]
[1725993451114,0.42181,2370.7,2370.5,0.7541]
[1725993451318,1.45859,2370.9,2370.5,9.9541]
[1725993451506,0.42181,2370.6,2370.5,9.9541]
[1725993451912,0.4218,2370.7,2370.5,9.9541]
[1725993453016,0.42181,2370.6,2370.5,9.9541]
[1725993453212,1.45859,2370.9,2370.5,9.9541]
[1725993453213,0.4218,2370.7,2370.5,9.9541]
[1725993453611,0.42178,2370.8,2370.5,9.9541]
[1725993453918,1.42552,2371.1,2370.5,9.9541]
[1725993454109,1.82302,2371.1,2370.5,9.9541]
[1725993454411,0.42177,2370.9,2370.5,9.9541]
[1725993454920,1.82302,2371.1,2370.5,9.9541]
[1725993454921,0.42181,2370.6,2370.5,9.2]
[1725993455112,0.4218,2370.7,2370.5,9.2]
[1725993455418,1.05438,2371.0,2370.5,9.2]
[1725993455419,0.42178,2370.8,2370.5,9.2]
[1725993456015,0.4218,2370.7,2370.5,9.2]
[1725993456621,0.7687,2371.1,2370.5,9.2]
[1725993456818,0.42178,2370.8,2370.5,9.2]
[1725993457120,0.42177,2370.8,2370.5,9.2]
[1725993458517,1.82303,2371.1,2370.5,9.2]
[1725993458822,0.42179,2370.7,2370.5,9.2]
[1725993459022,0.7687,2371.1,2370.5,9.62182]
[1725993459219,0.42174,2371.0,2370.5,9.62182]
[1725993459418,0.42174,2371.0,2370.5,9.2]
[1725993459618,0.7687,2371.1,2370.5,9.2]
[1725993459619,0.42176,2370.9,2370.5,9.2]
[1725993459819,0.42176,2370.9,2370.5,9.62182]
[1725993460317,0.7687,2371.1,2370.6,0.42181]
[1725993460521,3.25556469,2371.2,2370.7,0.7725]
[1725993460522,2.20127469,2371.2,2370.7,0.7725]
[1725993460719,2.20127469,2371.2,2370.8,0.42177]
[1725993460920,2.20127469,2371.2,2370.7,0.7725]
[1725993461222,2.20127469,2371.2,2370.9,0.42175]
[1725993461620,2.20127469,2371.2,2371.0,4.2176]
[1725993461920,0.4217,2371.2,2371.0,4.2176]
[1725993462219,1.05417,2371.4,2370.9,3.29]
[1725993462524,0.42172,2371.1,2370.9,3.29]
[1725993462924,0.42171,2371.2,2370.9,3.29]
[1725993463221,0.42173,2371.1,2370.9,3.29]
[1725993463529,0.42173,2371.1,2370.7,4.0625]
[1725993463710,0.42173,2371.1,2370.7,4.48429]
[1725993463917,1.05424,2371.3,2370.7,4.0625]
[1725993464115,0.42172,2371.1,2370.7,4.48429]
[1725993464315,0.7872,2371.2,2370.7,4.0625]
[1725993464516,1.20892,2371.2,2370.7,4.48428]
[1725993464719,1.05415,2371.5,2370.9,3.29]
[1725993465022,0.42169,2371.3,2370.9,3.71175]
[1725993465515,0.4217,2371.2,2370.9,3.29]
[1725993465722,0.7872,2371.6,2370.9,3.71174]
[1725993465723,0.42168,2371.3,2370.9,3.71174]
[1725993466219,0.42171,2371.2,2370.9,3.29]
[1725993466616,1.05418,2371.4,2370.9,3.29]
[1725993466617,0.42173,2371.1,2370.9,3.29]
[1725993466819,0.42171,2371.2,2370.9,3.29]
[1725993467319,0.42172,2371.1,2370.9,3.29]
[1725993467723,0.42172,2371.1,2370.7,4.0625]
[1725993468020,0.42172,2371.1,2370.7,4.48428]
[1725993469117,0.42172,2371.1,2370.8,0.42177]
[1725993469318,0.42172,2371.1,2370.7,4.48428]
[1725993469718,0.372,2371.2,2370.7,4.48428]
[1725993469719,0.42174,2371.0,2370.7,4.48428]
[1725993469921,0.42172,2371.1,2370.7,4.48428]
[1725993470314,1.22062,2371.1,2370.7,4.48428]
[1725993470511,0.42174,2371.0,2370.7,4.48428]
[1725993470712,0.7989,2371.1,2370.7,4.0625]
[1725993470915,0.42174,2371.0,2370.7,4.48429]
[1725993471317,0.42174,2371.0,2370.7,4.0625]
[1725993471520,0.42176,2370.9,2370.7,4.0625]
[1725993472318,0.7989,2371.1,2370.7,4.48429]
[1725993472319,0.42175,2371.0,2370.7,4.48429]
[1725993472729,0.42174,2371.0,2370.7,4.48429]
[1725993472921,0.42174,2371.0,2370.7,4.0625]
[1725993473131,0.42176,2370.9,2370.7,0.7725]
[1725993473824,0.42175,2371.0,2370.7,4.0625]
[1725993474122,0.42174,2371.0,2370.7,4.0625]
[1725993475529,0.42176,2370.9,2370.7,4.0625]
[1725993477023,1.0542,2371.4,2370.8,4.2176]
[1725993477223,0.42168,2371.4,2371.0,3.71173]
[1725993477533,0.42168,2371.4,2371.1,0.3737]
[1725993477731,0.42167,2371.4,2371.2,0.3851]
[1725993478029,0.42168,2371.3,2371.2,0.3851]
[1725993478332,2.96117469,2371.9,2371.5,0.42164]
[1725993478523,0.7599,2371.9,2371.6,0.3737]
[1725993478929,0.7599,2371.9,2371.7,9.2]
[1725993479928,0.42159,2371.8,2371.7,9.2]
[1725993480126,0.7599,2371.9,2371.7,9.2]
[1725993481131,1.18149,2371.9,2371.7,9.2]
[1725993481431,3.30191204,2373.2,2371.7,9.2]
[1725993481432,2.20127469,2372.2,2371.8,4.87508414]
[1725993481632,3.25485469,2372.8,2372.1,3.29]
[1725993481927,0.3988,2372.5,2372.2,0.65908414]
[1725993482128,0.42151,2372.3,2372.1,3.29]
[1725993482433,0.3988,2372.5,2372.0,3.29]
[1725993482640,1.05373,2372.4,2371.9,0.7432]
[1725993482825,5.89007469,2372.5,2371.9,0.7432]
[1725993483026,2.60007469,2372.5,2372.0,3.29]
[1725993483232,1.05382,2372.2,2371.8,3.29]
[1725993483422,1.05382,2372.2,2371.7,9.2]
[1725993483423,0.42159,2371.9,2371.6,3.29]
[1725993483622,0.3674,2371.8,2371.6,3.29]
[1725993484024,0.78901,2371.8,2371.6,3.29]
[1725993484233,0.42161,2371.7,2371.6,3.29]
[1725993484429,0.789,2371.8,2371.6,3.29]
[1725993484627,0.42161,2371.7,2371.6,3.29]
[1725993484834,0.42164,2371.6,2371.4,3.29]
[1725993485135,0.42165,2371.5,2371.4,3.29]
[1725993486341,0.42165,2371.5,2371.0,3.29]
[1725993486342,0.42172,2371.1,2371.0,3.29]
[1725993486523,0.42171,2371.2,2371.0,3.29]
[1725993486723,0.3677,2371.1,2371.0,3.29]
[1725993487230,0.3677,2371.1,2370.8,12.49]
[1725993487436,0.3852,2371.3,2370.9,3.29]
[1725993487633,0.3677,2371.5,2371.2,3.29]
[1725993487933,2.20127469,2371.8,2371.4,6.58]
[1725993488129,0.737,2372.2,2371.7,3.29]
[1725993488328,0.737,2372.2,2372.1,3.29]
[1725993489022,0.3915,2372.3,2372.1,3.29]
[1725993489226,1.15938,2372.5,2372.1,3.29]
[1725993489535,0.42146,2372.6,2372.3,3.29]
[1725993489735,0.42146,2372.6,2372.5,3.29]
[1725993489736,0.42145,2372.6,2372.5,3.29]
[1725993490032,0.3686,2372.7,2372.5,3.29]
[1725993490234,2.20127469,2372.8,2372.4,0.3687]
[1725993490235,0.7608,2372.9,2372.4,0.3687]
[1725993490427,0.7608,2372.9,2372.4,4.4187]
[1725993490625,2.20127469,2373.3,2372.8,0.42141]
[1725993490930,2.56987469,2373.8,2373.1,0.42135]
[1725993491242,11.15242457,2373.8,2373.1,0.3687]
[1725993491438,11.15242457,2373.8,2373.2,0.42134]
[1725993491629,11.15242457,2373.8,2373.1,0.3687]
[1725993491630,10.73117457,2373.8,2373.1,0.3687]
[1725993492227,2.20127469,2374.1,2373.3,4.05]
[1725993492535,1.99027469,2374.9,2373.9,8.1]
[1725993492729,1.99027469,2375.4,2374.7,4.05]
[1725993492929,1.99027469,2375.4,2374.0,0.7531]
[1725993492930,1.05232,2375.6,2374.4,4.05]
[1725993493337,10.73064376,2375.5,2374.7,4.05]
[1725993493728,11.12544376,2375.6,2375.0,4.05]
[1725993493925,11.12544376,2375.6,2374.8,4.05]
[1725993493926,0.3948,2375.6,2374.8,4.05]
[1725993494130,0.41209065,2376.4,2374.8,4.05]
[1725993494350,2.30169714,2377.8,2376.7,1.05182]
[1725993494637,2.30169714,2377.8,2376.3,12.15]
[1725993494638,0.42046,2378.2,2377.6,4.05]
[1725993494828,9.2020527,2378.3,2377.6,4.05]
[1725993495029,10.41317617,2378.4,2377.7,9.2]
[1725993495331,1.05074,2379.2,2377.7,9.2]
[1725993495332,9.70662935,2379.4,2378.4,0.42042]
[1725993495529,9.70662935,2379.4,2377.2,1.05159]
[1725993495530,9.70662935,2379.4,2377.8,14.48395364]
[1725993495729,0.2,2380.0,2379.1,4.05]
[1725993496034,0.2,2380.0,2378.4,9.43938094]
[1725993496035,0.42034,2378.9,2378.4,9.43938094]
[1725993496229,0.42034,2378.9,2377.3,18.5829066]
[1725993496230,0.42035,2378.9,2378.2,4.54]
[1725993496446,10.91812854,2379.9,2378.5,9.2]
[1725993496736,1.0507,2379.3,2377.8,4.54]
[1725993497038,0.42045,2378.3,2377.8,4.54]
[1725993497338,1.05085,2378.9,2377.9,9.2]
[1725993497534,0.3839,2378.8,2377.9,9.2]
[1725993497737,10.95027784,2378.8,2377.9,9.2]
[1725993498733,0.42042,2378.5,2377.9,9.2]
[1725993498936,10.95027784,2378.8,2377.9,9.2]
[1725993499748,1.41986,2379.8,2378.1,4.54]
[1725993499749,0.3847,2379.7,2378.1,4.54]
[1725993499935,1.05054,2379.6,2378.1,4.54]
[1725993500132,1.05065,2379.4,2378.1,4.54]
[1725993500345,0.42036,2378.8,2378.1,4.54]
[1725993500540,1.05068,2379.3,2378.1,4.54]
[1725993500741,1.05068,2379.3,2377.9,9.2]
[1725993500945,0.3847,2379.7,2377.9,9.2]
[1725993500946,1.05073,2379.2,2377.9,9.2]
[1725993501145,1.05077,2379.1,2377.9,9.2]
[1725993501338,0.42041,2378.5,2377.9,9.2]
[1725993501654,1.05085,2378.9,2377.9,9.2]
[1725993501848,4.54,2378.9,2377.9,9.2]
[1725993502037,10.59522279,2378.8,2377.0,4.54]
[1725993502348,0.42049,2378.1,2377.0,4.54]
[1725993502547,0.42049,2378.1,2377.2,0.42063]
[1725993502744,1.05099,2378.6,2377.2,0.42063]
[1725993502941,5.59085,2378.9,2377.1,9.2]
[1725993503247,1.05061,2379.5,2377.8,4.54]
[1725993503447,1.05063,2379.4,2377.8,4.54]
[1725993503644,10.56550816,2379.2,2377.8,4.54]
[1725993503845,11.61613816,2379.4,2377.8,4.54]
[1725993503846,1.05085,2378.9,2377.8,4.54]
[1725993504343,1.05085,2378.9,2377.1,9.2]
[1725993504344,1.0509,2378.8,2377.4,4.54]
[1725993504645,1.05077,2379.1,2377.4,4.54]
[1725993504843,0.42042,2378.5,2377.6,0.42056]
[1725993505038,0.42038,2378.7,2377.8,0.42051]
[1725993505243,0.42038,2378.7,2377.1,9.2]
[1725993505244,1.41989,2379.8,2378.2,4.96045]
[1725993505444,0.42029,2379.2,2378.3,0.42044]
[1725993506055,0.42027,2379.4,2378.5,0.42041]
[1725993506342,0.3694,2379.8,2379.1,0.42029]
[1725993506548,0.62016,2380.0,2378.9,4.54]
[1725993506549,0.2,2380.0,2378.9,4.54]
[1725993507142,0.2,2380.0,2379.3,4.54]
[1725993507542,0.2,2380.0,2379.3,4.96026]
[1725993507738,0.62015,2380.0,2379.4,0.42024]
[1725993507944,0.62015,2380.0,2379.5,9.2]
[1725993508144,0.2,2380.0,2379.5,9.2]
[1725993509148,0.42021,2379.6,2379.5,9.2]
[1725993509339,4.2024,2379.9,2378.9,4.54]
[1725993509541,1.05041,2379.9,2378.9,4.54]
[1725993509746,1.05041,2379.9,2379.0,9.2]
[1725993510048,0.2,2380.0,2379.2,4.54]
[1725993510251,0.2,2380.0,2379.0,9.2]
[1725993510252,0.2,2380.0,2379.6,4.54]
[1725993510446,0.2,2380.0,2379.6,4.9602]
[1725993510747,0.2,2380.0,2379.7,4.2024]
[1725993511148,0.2,2380.0,2379.8,4.2016]
[1725993511453,1.04997,2380.9,2379.6,4.54]
[1725993511655,0.42013,2380.1,2379.5,0.42022]
[1725993511852,0.42012,2380.2,2379.6,0.42021]
[1725993512041,0.42012,2380.2,2379.5,4.96022]
[1725993512242,0.7884,2381.0,2379.6,0.4202]
[1725993512448,0.42013,2380.1,2379.5,4.96022]
[1725993512653,0.42015,2380.0,2379.5,4.54]
[1725993512848,0.42013,2380.1,2379.5,4.54]
[1725993513151,0.42012,2380.1,2379.5,4.96023]
[1725993513354,0.42013,2380.1,2379.5,4.54]
[1725993513557,0.42013,2380.1,2379.5,4.96022]
[1725993513752,1.05005,2380.7,2379.5,4.54]
[1725993513945,1.05005,2380.7,2379.3,0.42025]
[1725993513946,1.0502,2380.4,2379.3,0.42025]
[1725993514149,1.0502,2380.4,2379.4,0.42025]
[1725993514150,0.42015,2380.0,2379.4,0.42025]
[1725993514453,0.7884,2381.0,2379.3,0.42025]
[1725993514454,1.05004,2380.8,2379.3,0.42025]
[1725993514653,1.05008,2380.7,2379.5,4.54]
[1725993514848,0.4201,2380.3,2379.6,0.4202]
[1725993515053,0.4201,2380.3,2379.5,4.54]
[1725993515354,0.4201,2380.3,2379.7,0.42019]
[1725993515656,0.42011,2380.2,2379.6,0.4202]
[1725993515857,0.7884,2381.0,2379.5,4.54]
[1725993515858,1.05002,2380.8,2379.5,4.54]
[1725993516053,0.42012,2380.2,2379.5,4.96022]
[1725993516453,0.42013,2380.1,2379.5,4.54]
[1725993516857,1.05007,2380.7,2379.5,4.54]
[1725993517049,0.42008,2380.4,2379.5,4.54]
[1725993517354,10.33397668,2380.9,2380.3,4.54]
[1725993517560,1.04971,2381.5,2380.3,4.54]
[1725993517764,1.04966,2381.7,2380.4,9.2]
[1725993518057,1.04966,2381.7,2380.6,4.54]
[1725993518261,0.7806,2381.9,2380.4,9.2]
[1725993518453,0.394,2381.9,2380.9,0.41997]
[1725993518654,0.394,2381.9,2380.5,9.57149683]
[1725993518655,0.49,2382.1,2381.0,4.749]
[1725993518861,0.49,2382.8,2382.1,4.54]
[1725993519065,1.04888,2383.4,2382.1,4.54]
[1725993519066,0.49,2383.3,2382.1,4.54]
[1725993519249,1.049,2383.1,2382.1,4.54]
[1725993519556,11.09023629,2383.3,2382.2,9.2]
[1725993519861,1.049,2383.1,2382.2,9.2]
[1725993520054,0.41974,2382.3,2382.2,9.2]
[1725993520356,0.41972,2382.4,2381.6,0.41985]
[1725993520657,0.41972,2382.4,2381.5,4.54]
[1725993520658,0.49,2383.3,2382.2,4.54]
[1725993520855,0.49,2383.3,2381.9,4.54]
[1725993521161,4.54,2382.8,2381.1,4.54]
[1725993521363,4.54,2382.5,2380.9,6.5]
[1725993521575,0.4198,2382.0,2380.9,6.5]
[1725993521755,10.56278977,2382.4,2381.1,4.54]
[1725993522161,0.41985,2381.7,2380.9,6.5]
[1725993522362,0.41983,2381.8,2380.9,6.5]
[1725993522560,0.41984,2381.7,2380.9,6.5]
[1725993522760,4.54,2382.5,2381.0,0.41995]
[1725993522761,10.25284819,2382.1,2381.0,0.41995]
[1725993523059,10.25284819,2382.4,2381.4,4.54]
[1725993523255,0.41971,2382.5,2381.6,0.41986]
[1725993523457,1.04913,2382.8,2381.5,0.3729]
[1725993523663,0.3835,2383.0,2381.1,4.9305]
[1725993523664,1.04919,2382.7,2381.1,4.9305]
[1725993523854,1.04922,2382.6,2381.1,4.9305]
[1725993524050,1.04927,2382.5,2381.1,4.54]
[1725993524270,0.41984,2381.8,2381.1,4.54]
[1725993524567,0.41985,2381.7,2381.1,4.54]
[1725993524754,4.54,2382.6,2380.7,4.54]
[1725993524953,10.52025017,2382.2,2380.7,4.54]
[1725993525154,10.52025017,2382.2,2380.3,0.3905]
[1725993525155,1.42345,2382.1,2380.4,4.54]
[1725993525361,1.79655,2382.1,2380.5,6.5]
[1725993525563,1.04951,2382.0,2380.5,6.5]
[1725993525866,11.31086481,2381.9,2380.5,6.5]
[1725993526063,1.04957,2381.8,2380.5,6.5]
[1725993526262,10.26133481,2381.9,2380.5,6.5]
[1725993526263,0.41987,2381.6,2380.7,0.42001]
[1725993526453,0.7471,2382.1,2380.5,6.5]
[1725993526659,0.4198,2382.0,2380.6,0.42004]
[1725993526962,10.41821732,2381.9,2380.5,6.5]
[1725993527155,10.83801732,2382.0,2380.5,6.5]
[1725993527357,0.3965,2381.9,2380.5,6.5]
[1725993527664,0.41996,2381.1,2380.5,6.5]
[1725993527854,1.04976,2381.4,2380.5,6.5]
[1725993528168,0.41996,2381.1,2380.5,6.5]
[1725993528464,1.44607,2381.9,2380.0,4.54]
[1725993528465,1.04969,2381.6,2380.0,4.54]
[1725993528660,0.41999,2380.9,2380.1,0.42012]
[1725993528963,0.41997,2381.0,2380.2,6.9201]
[1725993529359,1.0498,2381.3,2380.2,6.5]
[1725993529560,8.33,2382.8,2380.2,6.5]
[1725993529753,1.04971,2381.5,2380.2,6.5]
[1725993529957,11.67992804,2381.5,2380.2,6.5]
[1725993530153,0.41999,2380.9,2380.2,6.9201]
[1725993530356,0.41997,2381.0,2380.3,0.42009]
[1725993530562,0.3965,2381.9,2380.3,4.54]
[1725993530767,0.3965,2381.9,2380.7,0.42001]
[1725993530768,0.4199,2381.4,2380.7,0.42001]
[1725993530966,0.4199,2381.4,2380.6,0.42003]
[1725993531261,0.42001,2380.8,2380.2,6.5]
[1725993531474,1.04968,2381.6,2380.2,6.5]
[1725993531658,14.88915125,2381.7,2380.2,6.5]
[1725993531963,1.04987,2381.2,2380.2,6.5]
[1725993532357,1.04988,2381.1,2380.2,6.5]
[1725993532565,1.04988,2381.1,2380.2,6.9201]
[1725993532759,0.41995,2381.1,2380.4,0.42006]
[1725993533263,0.41996,2381.1,2380.4,0.42006]
[1725993533767,0.41997,2381.0,2380.4,0.42006]
[1725993533966,0.41997,2381.0,2380.3,4.54]
[1725993534166,1.04975,2381.4,2380.4,0.42006]
[1725993534467,0.41997,2381.1,2380.4,0.42006]
[1725993534769,0.41997,2381.0,2380.3,4.96008]
[1725993534967,0.41997,2381.0,2380.3,4.54]
[1725993535164,0.3965,2381.9,2380.2,6.5]
[1725993535368,1.04966,2381.6,2380.6,4.54]
[1725993535559,1.04975,2381.4,2380.6,4.54]
[1725993535764,0.41996,2381.1,2380.6,4.54]
[1725993535972,0.41997,2381.0,2380.3,4.54]
[1725993536169,0.3965,2381.9,2380.6,4.54]
[1725993536468,0.3965,2381.9,2380.2,6.5]
[1725993536469,0.3965,2381.9,2381.4,4.54]
[1725993536664,0.3782,2383.0,2381.5,0.41987]
[1725993536867,0.41977,2382.1,2381.6,6.5]
[1725993537062,1.42855,2382.8,2382.0,4.54]
[1725993537063,10.72055336,2382.8,2382.0,4.54]
[1725993537267,0.41969,2382.6,2382.0,4.95978]
[1725993537470,0.41969,2382.6,2382.0,4.54]
[1725993537765,0.41971,2382.5,2382.0,4.95979]
[1725993537965,0.3794,2382.8,2382.0,4.95979]
[1725993538162,0.3794,2382.8,2382.0,4.54]
[1725993538163,0.41972,2382.4,2382.0,4.54]
[1725993538569,0.41971,2382.5,2382.0,4.95979]
[1725993538869,1.04897,2383.2,2382.0,4.54]
[1725993539167,0.4197,2382.6,2382.1,0.41977]
[1725993539364,0.41967,2382.7,2382.2,0.41975]
[1725993539567,0.41969,2382.6,2382.1,0.41976]
[1725993539866,1.0491,2382.9,2382.0,4.54]
[1725993540072,1.04896,2383.2,2382.0,4.54]
[1725993540263,1.04896,2383.2,2381.7,1.04959]
[1725993540264,1.04896,2383.2,2382.4,4.54]
[1725993540572,0.4196,2383.1,2382.6,0.41968]
[1725993540871,1.04895,2383.2,2382.4,4.54]
[1725993541171,1.049,2383.1,2382.1,0.4018]
[1725993541366,1.04912,2382.9,2382.1,0.4018]
[1725993541558,1.04912,2382.9,2382.1,0.82156]
[1725993541766,0.4197,2382.6,2382.1,0.41977]
[1725993541966,0.4197,2382.6,2382.0,4.54]
[1725993542168,0.7616,2383.5,2382.0,4.54]
[1725993542368,1.2516,2383.5,2382.4,4.54]
[1725993542571,0.49,2383.5,2383.4,4.54]
[1725993542759,3.77529249,2386.4,2383.4,4.54]
[1725993542760,2.09567,2385.8,2383.4,10.54]
[1725993542966,2.0962,2385.2,2383.7,4.54]
[1725993543267,1.04826,2384.8,2383.7,4.54]
[1725993543580,0.3871,2384.7,2383.7,4.54]
[1725993543768,1.04842,2384.4,2383.7,4.54]
[1725993544074,0.7737,2385.1,2383.5,6.8903]
[1725993544075,4.54,2385.8,2384.0,4.54]
[1725993544267,0.7737,2385.7,2384.0,4.54]
[1725993544458,0.7737,2385.7,2383.7,4.54]
[1725993544459,1.04798,2385.5,2383.7,4.54]
[1725993544766,1.04795,2385.5,2384.3,0.41938]
[1725993544960,1.1443,2385.7,2383.8,14.28268777]
[1725993544961,0.41921,2385.3,2384.4,4.54]
[1725993545163,1.78886,2385.7,2384.4,4.54]
[1725993545360,1.78886,2385.7,2384.8,4.95929]
[1725993545361,0.41917,2385.6,2384.8,4.95929]
[1725993545561,1.04777,2385.9,2384.8,4.54]
[1725993545766,0.77164539,2386.5,2384.8,4.54]
[1725993545767,1.04769,2386.1,2384.8,4.54]
[1725993545967,0.4192,2385.4,2384.8,4.54]
[1725993546168,0.3706,2386.2,2384.8,4.54]
[1725993546363,0.41911,2385.9,2385.1,4.95923]
[1725993546567,0.41911,2385.9,2385.1,4.54]
[1725993546767,0.3706,2386.2,2385.1,4.54]
[1725993546768,1.04772,2386.0,2385.1,4.54]
[1725993546966,0.3706,2386.2,2385.1,4.54]
[1725993547270,3.77529249,2389.5,2384.5,0.3903]
[1725993547271,4.54,2387.3,2385.5,4.54]
[1725993547472,1.04734,2386.9,2385.5,4.54]
[1725993547675,0.41906,2386.2,2385.5,4.54]
[1725993548168,0.41882,2387.6,2385.8,4.54]
[1725993548376,0.41882,2387.6,2385.6,13.09737914]
[1725993548377,0.7562,2387.7,2386.9,4.54]
[1725993548576,0.41884,2387.4,2387.0,6.5]
[1725993548873,1.04667,2388.5,2386.2,4.54]
[1725993548874,0.41893,2386.9,2386.2,4.54]
[1725993549169,0.41882,2387.6,2386.5,4.54]
[1725993549370,20.9125,2390.8,2386.5,4.54]
[1725993549371,0.20686675,2389.5,2387.6,4.54]
[1725993549679,0.3669,2389.9,2387.2,4.54]
[1725993549680,1.04637,2389.1,2387.2,4.54]
[1725993549968,2.09212,2389.8,2386.6,6.5]
[1725993549969,0.41884,2387.4,2386.6,6.5]
[1725993550173,4.54,2388.9,2386.9,4.54]
[1725993550369,0.41882,2387.6,2386.9,4.54]
[1725993550670,0.41882,2387.6,2386.6,6.5]
[1725993550671,4.9228,2388.5,2386.6,6.5]
[1725993550866,4.54,2388.1,2386.6,6.5]
[1725993551067,0.3828,2388.5,2386.6,6.5]
[1725993551068,4.9228,2388.5,2386.6,6.5]
[1725993551475,0.41906,2386.2,2384.8,0.4192]
[1725993551770,4.54,2388.2,2385.0,4.54]
[1725993551771,1.04743,2386.7,2385.0,4.54]
[1725993551972,4.54,2386.9,2385.1,6.5]
[1725993551973,4.54,2386.5,2385.1,6.5]
[1725993552480,4.54,2386.5,2384.6,4.9272]
[1725993552481,1.04764,2386.2,2384.6,4.9272]
[1725993552774,0.41924,2385.2,2384.7,6.5]
[1725993552974,0.41924,2385.2,2384.6,4.9272]
[1725993552975,4.54,2386.5,2384.6,4.9272]
[1725993553169,1.04737,2386.8,2385.7,4.54]
[1725993553478,0.4042,2387.2,2386.1,4.54]
[1725993553777,0.7666,2388.1,2386.1,4.54]
[1725993554076,0.41886,2387.3,2386.1,4.54]
[1725993554268,0.7666,2388.1,2386.1,4.54]
[1725993554465,0.41894,2386.9,2386.1,4.54]
[1725993554667,1.04697,2387.8,2386.1,4.54]
[1725993554871,1.04697,2387.8,2385.8,0.3872]
[1725993554872,4.54,2387.8,2385.8,0.3872]
[1725993555083,0.4189,2387.1,2386.2,0.41904]
[1725993555271,0.4189,2387.1,2386.1,4.54]
[1725993555272,0.41886,2387.3,2386.4,0.41901]
[1725993555479,0.41886,2387.3,2386.1,4.54]
[1725993555480,1.04687,2388.0,2386.1,4.95906]
[1725993555773,1.04705,2387.6,2386.3,0.41902]
[1725993555969,0.3815,2388.1,2386.9,4.54]
[1725993556164,0.40488459,2389.4,2385.8,0.3872]
[1725993556165,5.58625,2389.4,2387.6,0.41879]
[1725993556365,0.3753,2389.3,2387.6,4.54]
[1725993556578,2.09133,2390.7,2387.6,4.54]
[1725993556579,1.04581,2390.4,2388.5,4.54]
[1725993556771,1.04581,2390.4,2388.9,4.54]
[1725993556971,1.04592,2390.2,2388.9,4.54]
[1725993557171,1.04576,2390.5,2388.9,4.54]
[1725993557371,1.04576,2390.5,2389.3,4.54]
[1725993557372,1.04575,2390.5,2389.3,4.54]
[1725993557568,0.41844,2389.7,2389.3,4.54]
[1725993557774,0.4184,2389.9,2389.3,4.54]
[1725993557977,1.04587,2390.3,2388.9,4.54]
[1725993558283,1.04587,2390.3,2388.6,4.54]
[1725993558674,1.04596,2390.1,2388.6,4.54]
[1725993558975,0.41848,2389.5,2388.7,6.5]
[1725993559176,4.54,2390.5,2388.7,6.5]
[1725993559374,1.04588,2390.2,2388.7,6.5]
[1725993559682,0.41848,2389.5,2388.7,6.91861]
[1725993559866,1.04602,2389.9,2387.9,4.54]
[1725993559867,4.54,2389.8,2387.9,4.54]
[1725993560074,0.41875,2388.0,2387.5,4.54]
[1725993560272,1.04655,2388.7,2387.6,6.5]
[1725993560569,0.7766,2389.8,2387.6,6.5]
[1725993560570,4.54,2389.5,2387.6,6.5]
[1725993560769,1.04652,2388.8,2387.6,6.5]
[1725993561066,1.04627,2389.4,2387.6,6.5]
[1725993561067,0.41879,2387.7,2387.6,6.5]
[1725993561273,5.2842,2388.7,2386.8,4.54]
[1725993561474,4.54,2388.3,2386.4,4.54]
[1725993561777,0.41878,2387.8,2387.0,0.4189]
[1725993561979,1.04665,2388.5,2387.2,4.54]
[1725993562277,0.7442,2388.7,2387.5,4.54]
[1725993562877,1.04668,2388.4,2387.1,4.54]
[1725993563177,1.04674,2388.3,2386.7,4.54]
[1725993563376,0.41884,2387.4,2386.7,4.95895]
[1725993563679,4.9049,2388.7,2386.7,4.95895]
[1725993563680,4.9049,2388.7,2386.7,4.54]
[1725993563982,1.04702,2387.6,2386.5,6.5]
[1725993564283,0.4189,2387.1,2386.6,8.62621836]
[1725993564575,0.41892,2387.0,2386.5,6.5]
[1725993564783,2.09343,2388.3,2386.5,6.5]
[1725993564974,4.54,2388.0,2386.4,4.54]
[1725993565175,0.41892,2387.0,2386.4,4.54]
[1725993565485,1.04715,2387.3,2386.5,6.5]
[1725993565674,0.41892,2387.0,2386.5,6.5]
[1725993565869,0.41889,2387.1,2386.5,6.919]
[1725993566071,1.04712,2387.4,2386.5,6.5]
[1725993566273,0.41894,2386.9,2386.5,6.5]
[1725993566679,1.04703,2387.6,2386.5,6.5]
[1725993566983,0.41897,2386.7,2386.0,4.54]
[1725993567175,0.3642,2387.9,2386.1,0.41906]